fUSD/lending_fUSD_20260529
["ID","MTS","AMOUNT","RATE_DAILY","PERIOD"]
[423270169,1780009846000,-336.90587807,0.00022407,2]
[423270173,1780009846000,-1687.63922821,0.0002244,2]
[423270175,1780009846000,-1419.38987518,0.0002245,2]
[423270179,1780009846000,-1525.55,0.00022466,2]
[423270178,1780009846000,-272.12,0.00022466,2]
[423270184,1780009846000,-154.38663987,0.0002254,30]
[423270177,1780009846000,-1687.63922821,0.00022463,2]
[423270186,1780009846000,-1410.4,0.00022572,2]
[423270185,1780009846000,-500.0,0.00022572,14]
[423270187,1780009846000,-217.15233878,0.00022668,2]
[423270191,1780009846000,-1894.59,0.00022691,2]
[423270188,1780009846000,-601.95212204,0.00022685,2]
[423270192,1780009846000,-1687.63922821,0.00022713,2]
[423270194,1780009846000,-1687.63922821,0.00022855,2]
[423270195,1780009846000,-1687.63922821,0.00022898,2]
[423270193,1780009846000,-3070.2,0.000228,7]
[423270190,1780009846000,-6862.9,0.00022691,2]
[423270197,1780009846000,-151.0,0.00022943,2]
[423270198,1780009846000,-1592.87721992,0.00022943,2]
[423270199,1780009846000,-773.24136889,0.00022943,2]
[423270162,1780009846000,-1536.04360648,0.00022395,2]
[423270163,1780009846000,-745.65223615,0.00022395,2]
[423270189,1780009846000,-674.75,0.00022691,2]
[423270164,1780009846000,-200.0,0.00022395,2]
[423270157,1780009846000,-1272.0,0.0002218,2]
[423270143,1780009846000,-3637.0,0.0002202,2]
[423270137,1780009846000,-1281.0,0.00022,2]
[423270142,1780009846000,-560.0,0.00022,2]
[423270131,1780009846000,-999.0,0.00022,2]
[423270133,1780009846000,-3186.0,0.00022,2]
[423270134,1780009846000,-1072.0,0.00022,2]
[423270136,1780009846000,-2359.0,0.00022,2]
[423270135,1780009846000,-1003.0,0.00022,2]
[423270155,1780009846000,-928.0,0.0002218,2]
[423270144,1780009846000,-6064.0,0.0002202,2]
[423270196,1780009846000,-722.20815168,0.00022937,22]
[423270146,1780009846000,-160.825,0.0002218,2]
[423270154,1780009846000,-1356.0,0.0002218,2]
[423270141,1780009846000,-2566.0,0.00022,2]
[423270149,1780009846000,-152.116,0.0002218,2]
[423270153,1780009846000,-150.099,0.0002218,2]
[423270161,1780009846000,-151.0,0.00022395,2]
[423270167,1780009846000,-194.78329367,0.00022407,2]
[423270165,1780009846000,-2236.95670847,0.00022395,2]
[423270159,1780009846000,-200.0,0.00022292,2]
[423270160,1780009846000,-6512.8,0.00022353,2]
[423270168,1780009846000,-194.78329367,0.00022407,2]
[423270156,1780009846000,-525.0,0.0002218,2]
[423270152,1780009846000,-151.0,0.0002218,2]
[423270148,1780009846000,-150.0,0.0002218,2]
[423270151,1780009846000,-150.0,0.0002218,2]
[423270147,1780009846000,-150.0,0.0002218,2]
[423270158,1780009846000,-2855.62,0.000222,7]
[423270150,1780009846000,-150.0,0.0002218,2]
[423270226,1780009847000,-154.38663987,0.00023231,30]
[423270229,1780009847000,-519.63,0.00023367,2]
[423270228,1780009847000,-1419.38987518,0.00023291,2]
[423270231,1780009847000,-150.99,0.00023368,2]
[423270235,1780009847000,-1223.82,0.00023368,2]
[423270236,1780009847000,-1419.38987518,0.00023472,2]
[423270233,1780009847000,-299.99,0.00023368,7]
[423270232,1780009847000,-9783.8,0.00023368,2]
[423270234,1780009847000,-1490.01,0.00023368,2]
[423270230,1780009847000,-560.67,0.00023367,2]
[423270240,1780009847000,-2405.55389863,0.00023491,2]
[423270248,1780009847000,-200.0,0.00023876,2]
[423270238,1780009847000,-1651.81367706,0.00023491,2]
[423270237,1780009847000,-151.0,0.00023491,2]
[423270249,1780009847000,-2855.62,0.000239,7]
[423270227,1780009847000,-150.0,0.00023288,2]
[423270246,1780009847000,-1419.38987518,0.00023834,2]
[423270241,1780009847000,-1687.63922821,0.00023532,2]
[423270245,1780009847000,-1419.38987518,0.00023761,2]
[423270242,1780009847000,-3673.78,0.00023563,2]
[423270243,1780009847000,-1800.0,0.00023598,2]
[423270239,1780009847000,-269.85120057,0.00023491,2]
[423270222,1780009847000,-200.0,0.00023084,2]
[423270217,1780009847000,-4829.0,0.00023,2]
[423270220,1780009847000,-560.0,0.00023,2]
[423270247,1780009847000,-200.0,0.00023856,2]
[423270200,1780009847000,-216.18411203,0.00022943,2]
[423270202,1780009847000,-1687.63922821,0.00022967,2]
[423270201,1780009847000,-2319.72410669,0.00022943,2]
[423270203,1780009847000,-353.43283868,0.00023,2]
[423270204,1780009847000,-1000.0,0.00023,20]
[423270205,1780009847000,-150.0,0.00023,2]
[423270207,1780009847000,-1331.0,0.00023,2]
[423270206,1780009847000,-150.0,0.00023,2]
[423270208,1780009847000,-1880.0,0.00023,2]
[423270224,1780009847000,-1687.63922821,0.00023198,2]
[423270212,1780009847000,-1072.0,0.00023,2]
[423270213,1780009847000,-1003.0,0.00023,2]
[423270211,1780009847000,-3186.0,0.00023,2]
[423270214,1780009847000,-2359.0,0.00023,2]
[423270216,1780009847000,-1136.0,0.00023,2]
[423270215,1780009847000,-1281.0,0.00023,2]
[423270219,1780009847000,-2566.0,0.00023,2]
[423270218,1780009847000,-150.0,0.00023,2]
[423270225,1780009847000,-154.38663988,0.00023231,7]
[423270221,1780009847000,-1419.38987518,0.00023051,2]
[423270223,1780009847000,-150.0,0.00023191,21]
[423270209,1780009847000,-999.0,0.00023,2]
[423270210,1780009847000,-2518.0,0.00023,2]
[423270251,1780009847000,-154.38663987,0.00023922,30]
[423270258,1780009847000,-1072.0,0.00024,2]
[423270274,1780009847000,-1334.86,0.0002411,2]
[423270281,1780009847000,-151.0,0.00024587,2]
[423270279,1780009847000,-694.10383708,0.0002437,2]
[423270283,1780009847000,-2586.85809042,0.00024587,2]
[423270280,1780009847000,-200.0,0.000244,2]
[423270284,1780009847000,-805.72,0.00024595,2]
[423270282,1780009847000,-1776.30922209,0.00024587,2]
[423270286,1780009847000,-958.71,0.00024658,2]
[423270294,1780009847000,-371.859056,0.00024658,2]
[423270287,1780009847000,-371.859056,0.00024658,2]
[423270275,1780009847000,-254.17,0.0002411,2]
[423270296,1780009847000,-151.503986,0.00024658,2]
[423270289,1780009847000,-371.859056,0.00024658,2]
[423270295,1780009847000,-1000.0,0.00024658,2]
[423270285,1780009847000,-917.31,0.00024658,6]
[423270288,1780009847000,-371.859056,0.00024658,2]
[423270293,1780009847000,-371.859056,0.00024658,2]
[423270292,1780009847000,-371.859056,0.00024658,2]
[423270297,1780009847000,-151.503986,0.00024658,2]
[423270299,1780009847000,-151.503986,0.00024658,2]
[423270298,1780009847000,-151.503986,0.00024658,2]
[423270244,1780009847000,-750.0,0.00023598,7]
[423270290,1780009847000,-371.859056,0.00024658,2]
[423270278,1780009847000,-6512.8,0.00024324,2]
[423270291,1780009847000,-371.859056,0.00024658,2]
[423270276,1780009847000,-239.71,0.0002411,2]
[423270259,1780009847000,-1003.0,0.00024,2]
[423270277,1780009847000,-218.63,0.00024168,2]
[423270261,1780009847000,-1281.0,0.00024,2]
[423270250,1780009847000,-154.38663988,0.00023922,7]
[423270260,1780009847000,-2359.0,0.00024,2]
[423270252,1780009847000,-500.0,0.00024,2]
[423270254,1780009847000,-1880.0,0.00024,2]
[423270256,1780009847000,-2518.0,0.00024,2]
[423270253,1780009847000,-1331.0,0.00024,2]
[423270255,1780009847000,-999.0,0.00024,2]
[423270266,1780009847000,-567.0,0.00024,2]
[423270257,1780009847000,-3186.0,0.00024,2]
[423270262,1780009847000,-1136.0,0.00024,2]
[423270264,1780009847000,-209.03147293,0.00024,7]
[423270265,1780009847000,-2566.0,0.00024,2]
[423270271,1780009847000,-2494.55939288,0.00024039,2]
[423270269,1780009847000,-151.0,0.00024039,2]
[423270263,1780009847000,-4829.0,0.00024,2]
[423270272,1780009847000,-1908.1,0.00024068,2]
[423270268,1780009847000,-599.60298507,0.00024038,2]
[423270267,1780009847000,-301.05113975,0.00024037,2]
[423270270,1780009847000,-1712.93078311,0.00024039,2]
[423270273,1780009847000,-238.1,0.0002411,2]
[423270346,1780009848000,-150.0,0.0002518,2]
[423270340,1780009848000,-1108.9892261,0.00025167,2]
[423270339,1780009848000,-2682.57183977,0.00025135,2]
[423270338,1780009848000,-1842.0326633,0.00025135,2]
[423270337,1780009848000,-265.08541303,0.00025135,2]
[423270332,1780009848000,-391.94,0.00025,2]
[423270336,1780009848000,-598.65,0.00025029,2]
[423270329,1780009848000,-391.94,0.00025,2]
[423270330,1780009848000,-391.94,0.00025,2]
[423270331,1780009848000,-391.94,0.00025,2]
[423270342,1780009848000,-150.0,0.0002518,2]
[423270335,1780009848000,-6064.0,0.0002502,2]
[423270341,1780009848000,-150.0,0.0002518,2]
[423270356,1780009848000,-200.0,0.0002546,2]
[423270344,1780009848000,-150.0,0.0002518,2]
[423270347,1780009848000,-150.0,0.0002518,2]
[423270349,1780009848000,-1356.0,0.0002518,2]
[423270352,1780009848000,-1272.0,0.0002518,2]
[423270348,1780009848000,-150.0,0.0002518,2]
[423270350,1780009848000,-928.0,0.0002518,2]
[423270351,1780009848000,-525.0,0.0002518,2]
[423270358,1780009848000,-1910.18787185,0.00025683,2]
[423270355,1780009848000,-3673.78,0.00025344,7]
[423270359,1780009848000,-2781.82699784,0.00025683,2]
[423270353,1780009848000,-152.0,0.00025198,4]
[423270327,1780009848000,-391.94,0.00025,2]
[423270345,1780009848000,-150.0,0.0002518,2]
[423270324,1780009848000,-391.94,0.00025,2]
[423270305,1780009848000,-500.0,0.00024658,7]
[423270334,1780009848000,-3637.0,0.0002502,2]
[423270357,1780009848000,-2855.62,0.000256,7]
[423270300,1780009848000,-151.503986,0.00024658,2]
[423270303,1780009848000,-151.503986,0.00024658,2]
[423270301,1780009848000,-151.503986,0.00024658,2]
[423270302,1780009848000,-151.503986,0.00024658,2]
[423270308,1780009848000,-779.53,0.00024933,7]
[423270304,1780009848000,-150.0,0.00024658,2]
[423270307,1780009848000,-152.0,0.00024684,3]
[423270306,1780009848000,-200.0,0.00024668,2]
[423270309,1780009848000,-1225.0,0.00024985,2]
[423270313,1780009848000,-1899.0,0.00025,2]
[423270310,1780009848000,-768.03,0.00025,2]
[423270312,1780009848000,-1340.0309022,0.00025,2]
[423270311,1780009848000,-2784.042176,0.00025,2]
[423270321,1780009848000,-1141.0,0.00025,2]
[423270314,1780009848000,-1003.5577262,0.00025,2]
[423270318,1780009848000,-1007.4187425,0.00025,2]
[423270316,1780009848000,-3186.30558325,0.00025,2]
[423270317,1780009848000,-1088.0,0.00025,2]
[423270315,1780009848000,-2522.22279225,0.00025,2]
[423270320,1780009848000,-1286.3408213,0.00025,2]
[423270319,1780009848000,-2365.16436272,0.00025,2]
[423270323,1780009848000,-2574.0,0.00025,2]
[423270333,1780009848000,-391.94,0.00025,2]
[423270325,1780009848000,-391.94,0.00025,2]
[423270328,1780009848000,-391.94,0.00025,2]
[423270322,1780009848000,-4836.0,0.00025,2]
[423270326,1780009848000,-391.94,0.00025,2]
[423270354,1780009848000,-345.93,0.000253,14]
[423270343,1780009848000,-150.0,0.0002518,2]
[423270363,1780009848000,-550.0,0.00026,2]
[423270389,1780009848000,-169.952748,0.00026123,2]
[423270394,1780009848000,-152.0,0.00026226,6]
[423270392,1780009848000,-169.952748,0.00026123,2]
[423270393,1780009848000,-173.91,0.00026201,2]
[423270398,1780009848000,-151.0,0.00026232,2]
[423270399,1780009848000,-151.0,0.00026232,2]
[423270408,1780009848000,-898.994,0.00026232,2]
[423270397,1780009848000,-151.0,0.00026232,2]
[423270403,1780009848000,-898.994,0.00026232,2]
[423270404,1780009848000,-517.749427,0.00026232,2]
[423270400,1780009848000,-231.837034,0.00026232,2]
[423270405,1780009848000,-517.749427,0.00026232,2]
[423270402,1780009848000,-151.0,0.00026232,2]
[423270406,1780009848000,-898.994,0.00026232,2]
[423270407,1780009848000,-517.749427,0.00026232,2]
[423270409,1780009848000,-517.749427,0.00026232,2]
[423270415,1780009848000,-6512.8,0.00026296,2]
[423270414,1780009848000,-219.0,0.00026289,2]
[423270411,1780009848000,-200.0,0.00026252,2]
[423270412,1780009848000,-280.0,0.00026289,2]
[423270419,1780009848000,-666.725847,0.00026296,2]
[423270410,1780009848000,-898.994,0.00026232,2]
[423270413,1780009848000,-150.0,0.00026289,2]
[423270416,1780009848000,-666.725847,0.00026296,2]
[423270417,1780009848000,-666.725847,0.00026296,2]
[423270418,1780009848000,-666.725847,0.00026296,2]
[423270360,1780009848000,-152.0,0.00025712,5]
[423270391,1780009848000,-4101.394339,0.00026123,2]
[423270388,1780009848000,-4101.394339,0.00026123,2]
[423270401,1780009848000,-151.0,0.00026232,2]
[423270386,1780009848000,-169.952748,0.00026123,2]
[423270390,1780009848000,-4101.394339,0.00026123,2]
[423270362,1780009848000,-200.0,0.0002597,2]
[423270365,1780009848000,-170.07,0.00026027,7]
[423270366,1780009848000,-171.22,0.00026027,7]
[423270361,1780009848000,-7006.95,0.00025786,2]
[423270367,1780009848000,-173.20133481,0.00026028,2]
[423270370,1780009848000,-291.0,0.000261,2]
[423270369,1780009848000,-1140.0,0.000261,2]
[423270368,1780009848000,-500.0,0.00026028,7]
[423270371,1780009848000,-1142.0,0.000261,2]
[423270373,1780009848000,-151.503986,0.000261,2]
[423270420,1780009848000,-182.026508,0.00026381,7]
[423270383,1780009848000,-151.0,0.00026123,2]
[423270372,1780009848000,-151.503986,0.000261,2]
[423270364,1780009848000,-500.0,0.00026,2]
[423270376,1780009848000,-151.503986,0.000261,2]
[423270375,1780009848000,-151.503986,0.000261,2]
[423270395,1780009848000,-1980.8648231,0.00026231,2]
[423270387,1780009848000,-169.952748,0.00026123,2]
[423270384,1780009848000,-151.0,0.00026123,2]
[423270385,1780009848000,-4101.394339,0.00026123,2]
[423270381,1780009848000,-2146.83,0.00026123,2]
[423270396,1780009848000,-2884.75459676,0.00026231,2]
[423270377,1780009848000,-300.787183,0.000261,2]
[423270374,1780009848000,-151.0,0.000261,2]
[423270378,1780009848000,-300.787183,0.000261,2]
[423270380,1780009848000,-300.787183,0.000261,2]
[423270382,1780009848000,-151.0,0.00026123,2]
[423270379,1780009848000,-300.787183,0.000261,2]
[423270462,1780009849000,-409.06,0.00027038,2]
[423270467,1780009849000,-152.0,0.00027253,8]
[423270468,1780009849000,-730.32983664,0.00027279,40]
[423270452,1780009849000,-621.78829552,0.00026777,2]
[423270457,1780009849000,-560.67,0.00026999,2]
[423270458,1780009849000,-215.50460005,0.00027,3]
[423270460,1780009849000,-163.0,0.00027,7]
[423270456,1780009849000,-519.63,0.00026999,2]
[423270451,1780009849000,-152.0,0.00026739,7]
[423270449,1780009849000,-2000.0,0.00026667,7]
[423270464,1780009849000,-512.38771069,0.0002708,5]
[423270459,1780009849000,-3159.114355,0.00027,2]
[423270465,1780009849000,-200.0,0.0002708,20]
[423270480,1780009849000,-500.0,0.00027397,2]
[423270463,1780009849000,-200.0,0.00027044,2]
[423270466,1780009849000,-3673.78,0.00027126,7]
[423270470,1780009849000,-298.35233335,0.000273,30]
[423270472,1780009849000,-158.2777984,0.00027397,30]
[423270469,1780009849000,-298.35233337,0.000273,30]
[423270481,1780009849000,-500.0,0.00027397,2]
[423270471,1780009849000,-205.50992911,0.00027397,30]
[423270482,1780009849000,-500.0,0.00027397,2]
[423270474,1780009849000,-500.0,0.00027397,2]
[423270478,1780009849000,-500.0,0.00027397,2]
[423270479,1780009849000,-500.0,0.00027397,2]
[423270477,1780009849000,-500.0,0.00027397,2]
[423270454,1780009849000,-2991.49051684,0.00026779,2]
[423270461,1780009849000,-1410.4,0.00027011,2]
[423270446,1780009849000,-500.0,0.00026594,14]
[423270421,1780009849000,-493.162796,0.00026384,2]
[423270447,1780009849000,-407.0,0.00026629,2]
[423270431,1780009849000,-158.55,0.00026384,2]
[423270422,1780009849000,-493.162796,0.00026384,2]
[423270424,1780009849000,-493.162796,0.00026384,2]
[423270423,1780009849000,-493.162796,0.00026384,2]
[423270427,1780009849000,-371.859056,0.00026384,2]
[423270425,1780009849000,-371.859056,0.00026384,2]
[423270426,1780009849000,-371.859056,0.00026384,2]
[423270428,1780009849000,-371.859056,0.00026384,2]
[423270429,1780009849000,-158.55,0.00026384,2]
[423270430,1780009849000,-158.55,0.00026384,2]
[423270434,1780009849000,-1251.149205,0.00026384,2]
[423270432,1780009849000,-158.55,0.00026384,2]
[423270433,1780009849000,-1251.149205,0.00026384,2]
[423270435,1780009849000,-1251.149205,0.00026384,2]
[423270437,1780009849000,-151.0,0.00026384,2]
[423270443,1780009849000,-15693.07865307,0.00026578,2]
[423270436,1780009849000,-1251.149205,0.00026384,2]
[423270438,1780009849000,-151.0,0.00026384,2]
[423270440,1780009849000,-315.0,0.000265,2]
[423270441,1780009849000,-601.95212204,0.00026578,2]
[423270439,1780009849000,-200.0,0.000264,2]
[423270442,1780009849000,-609.99305557,0.00026578,2]
[423270445,1780009849000,-305.57326039,0.00026578,2]
[423270455,1780009849000,-249.86,0.00026784,15]
[423270444,1780009849000,-2703.39193606,0.00026578,2]
[423270448,1780009849000,-407.0,0.0002663,2]
[423270453,1780009849000,-2054.15682156,0.00026779,2]
[423270450,1780009849000,-4837.0,0.000267,7]
[423270473,1780009849000,-199.04725004,0.00027397,30]
[423270475,1780009849000,-500.0,0.00027397,2]
[423270484,1780009849000,-500.0,0.00027397,2]
[423270514,1780009849000,-151.0,0.00027397,2]
[423270515,1780009849000,-151.0,0.00027397,2]
[423270519,1780009849000,-151.0,0.00027397,2]
[423270526,1780009849000,-1137.284718,0.00027397,2]
[423270518,1780009849000,-151.0,0.00027397,2]
[423270520,1780009849000,-151.0,0.00027397,2]
[423270521,1780009849000,-151.0,0.00027397,2]
[423270529,1780009849000,-1137.284718,0.00027397,2]
[423270530,1780009849000,-1137.284718,0.00027397,2]
[423270527,1780009849000,-1137.284718,0.00027397,2]
[423270524,1780009849000,-1137.284718,0.00027397,2]
[423270528,1780009849000,-1137.284718,0.00027397,2]
[423270525,1780009849000,-1137.284718,0.00027397,2]
[423270508,1780009849000,-288.449143,0.00027397,2]
[423270522,1780009849000,-1137.284718,0.00027397,2]
[423270534,1780009849000,-151.0,0.00027397,2]
[423270535,1780009849000,-151.0,0.00027397,2]
[423270533,1780009849000,-1137.284718,0.00027397,2]
[423270542,1780009849000,-208.471488,0.00027397,2]
[423270532,1780009849000,-1137.284718,0.00027397,2]
[423270537,1780009849000,-151.0,0.00027397,2]
[423270536,1780009849000,-151.0,0.00027397,2]
[423270538,1780009849000,-151.0,0.00027397,2]
[423270539,1780009849000,-151.0,0.00027397,2]
[423270540,1780009849000,-151.0,0.00027397,2]
[423270541,1780009849000,-151.0,0.00027397,2]
[423270543,1780009849000,-1295.476588,0.00027397,2]
[423270476,1780009849000,-500.0,0.00027397,2]
[423270531,1780009849000,-1137.284718,0.00027397,2]
[423270516,1780009849000,-151.0,0.00027397,2]
[423270523,1780009849000,-1137.284718,0.00027397,2]
[423270512,1780009849000,-1000.0,0.00027397,20]
[423270486,1780009849000,-500.0,0.00027397,2]
[423270513,1780009849000,-151.0,0.00027397,2]
[423270483,1780009849000,-500.0,0.00027397,2]
[423270485,1780009849000,-500.0,0.00027397,2]
[423270487,1780009849000,-500.0,0.00027397,2]
[423270488,1780009849000,-500.0,0.00027397,2]
[423270492,1780009849000,-150.0,0.00027397,2]
[423270490,1780009849000,-500.0,0.00027397,2]
[423270489,1780009849000,-500.0,0.00027397,2]
[423270493,1780009849000,-388.35324219,0.00027397,2]
[423270494,1780009849000,-1500.0,0.00027397,2]
[423270505,1780009849000,-288.449143,0.00027397,2]
[423270496,1780009849000,-246.90043173,0.00027397,7]
[423270495,1780009849000,-917.31,0.00027397,15]
[423270491,1780009849000,-440.0559241,0.00027397,2]
[423270501,1780009849000,-288.449143,0.00027397,2]
[423270511,1780009849000,-288.449143,0.00027397,2]
[423270498,1780009849000,-958.71,0.00027397,2]
[423270509,1780009849000,-288.449143,0.00027397,2]
[423270506,1780009849000,-288.449143,0.00027397,2]
[423270517,1780009849000,-151.0,0.00027397,2]
[423270507,1780009849000,-288.449143,0.00027397,2]
[423270503,1780009849000,-288.449143,0.00027397,2]
[423270510,1780009849000,-288.449143,0.00027397,2]
[423270504,1780009849000,-288.449143,0.00027397,2]
[423270500,1780009849000,-288.449143,0.00027397,2]
[423270502,1780009849000,-288.449143,0.00027397,2]
[423270497,1780009849000,-150.0,0.00027397,7]
[423270499,1780009849000,-300.0,0.00027397,2]
[423270590,1780009850000,-3150.17,0.0002755,30]
[423270588,1780009850000,-387.55,0.0002755,2]
[423270586,1780009850000,-5879.07,0.0002755,30]
[423270585,1780009850000,-5194.45,0.0002755,30]
[423270587,1780009850000,-3149.57,0.0002755,30]
[423270579,1780009850000,-4837.0,0.000275,7]
[423270575,1780009850000,-1541.41,0.00027489,7]
[423270578,1780009850000,-2855.62,0.000275,7]
[423270581,1780009850000,-150.0,0.00027521,2]
[423270576,1780009850000,-1065.01,0.00027489,7]
[423270580,1780009850000,-152.81362458,0.0002752,2]
[423270597,1780009850000,-423.9,0.00027611,30]
[423270577,1780009850000,-585.9,0.00027489,7]
[423270596,1780009850000,-387.55,0.00027611,30]
[423270604,1780009850000,-173.25374622,0.00027666,30]
[423270593,1780009850000,-387.55,0.0002758,7]
[423270591,1780009850000,-423.9,0.0002755,2]
[423270595,1780009850000,-202.3680093,0.00027585,30]
[423270594,1780009850000,-423.9,0.0002758,7]
[423270592,1780009850000,-5879.6,0.0002755,30]
[423270599,1780009850000,-173.25374622,0.00027633,2]
[423270598,1780009850000,-170.97382667,0.00027633,2]
[423270610,1780009850000,-446.0,0.00027666,30]
[423270602,1780009850000,-231.25384871,0.00027666,30]
[423270600,1780009850000,-387.55,0.00027641,2]
[423270609,1780009850000,-381.0,0.00027666,30]
[423270601,1780009850000,-423.9,0.00027641,2]
[423270574,1780009850000,-1089.59,0.00027489,7]
[423270589,1780009850000,-5194.39,0.0002755,30]
[423270584,1780009850000,-253.02,0.0002755,2]
[423270546,1780009850000,-1295.476588,0.00027397,2]
[423270573,1780009850000,-3476.91036564,0.00027429,2]
[423270544,1780009850000,-1295.476588,0.00027397,2]
[423270556,1780009850000,-343.542752,0.00027397,2]
[423270557,1780009850000,-343.542752,0.00027397,2]
[423270545,1780009850000,-1295.476588,0.00027397,2]
[423270547,1780009850000,-1295.476588,0.00027397,2]
[423270551,1780009850000,-1295.476588,0.00027397,2]
[423270549,1780009850000,-1295.476588,0.00027397,2]
[423270548,1780009850000,-1295.476588,0.00027397,2]
[423270550,1780009850000,-1295.476588,0.00027397,2]
[423270554,1780009850000,-1295.476588,0.00027397,2]
[423270555,1780009850000,-343.542752,0.00027397,2]
[423270552,1780009850000,-1295.476588,0.00027397,2]
[423270553,1780009850000,-1295.476588,0.00027397,2]
[423270559,1780009850000,-343.542752,0.00027397,2]
[423270569,1780009850000,-500.0,0.00027398,7]
[423270561,1780009850000,-343.542752,0.00027397,2]
[423270570,1780009850000,-1542.91,0.000274,14]
[423270558,1780009850000,-343.542752,0.00027397,2]
[423270560,1780009850000,-343.542752,0.00027397,2]
[423270564,1780009850000,-343.542752,0.00027397,2]
[423270562,1780009850000,-343.542752,0.00027397,2]
[423270566,1780009850000,-343.542752,0.00027397,2]
[423270565,1780009850000,-343.542752,0.00027397,2]
[423270563,1780009850000,-343.542752,0.00027397,2]
[423270568,1780009850000,-18759.83,0.00027397,10]
[423270567,1780009850000,-18154.67,0.00027397,10]
[423270572,1780009850000,-4672.36,0.000274,7]
[423270582,1780009850000,-150.0,0.0002755,2]
[423270571,1780009850000,-3640.04,0.000274,7]
[423270583,1780009850000,-151.94,0.0002755,2]
[423270603,1780009850000,-170.97382667,0.00027666,30]
[423270608,1780009850000,-300.0,0.00027666,30]
[423270606,1780009850000,-3000.0,0.00027666,30]
[423270644,1780009850000,-200.0,0.00027836,2]
[423270640,1780009850000,-150.0,0.00027827,2]
[423270645,1780009850000,-156.0,0.0002784,30]
[423270646,1780009850000,-174.0,0.0002784,30]
[423270647,1780009850000,-192.05520129,0.0002784,30]
[423270657,1780009850000,-150.0,0.0002784,30]
[423270650,1780009850000,-400.0,0.0002784,30]
[423270652,1780009850000,-400.0,0.0002784,30]
[423270648,1780009850000,-205.94563958,0.0002784,30]
[423270649,1780009850000,-319.86641314,0.0002784,30]
[423270658,1780009850000,-219.0,0.0002784,30]
[423270651,1780009850000,-400.0,0.0002784,30]
[423270656,1780009850000,-511.50455031,0.0002784,30]
[423270659,1780009850000,-342.28610513,0.0002784,30]
[423270653,1780009850000,-400.0,0.0002784,30]
[423270654,1780009850000,-536.0,0.0002784,30]
[423270655,1780009850000,-169.0,0.0002784,30]
[423270661,1780009850000,-423.9,0.00027855,7]
[423270671,1780009850000,-3150.17,0.00027872,2]
[423270665,1780009850000,-1278.76137579,0.00027872,2]
[423270662,1780009850000,-779.53,0.00027865,7]
[423270667,1780009850000,-5194.45,0.00027872,2]
[423270666,1780009850000,-855.71526284,0.00027872,2]
[423270660,1780009850000,-387.55,0.00027855,7]
[423270663,1780009850000,-192.05520129,0.00027872,2]
[423270664,1780009850000,-799.66603286,0.00027872,2]
[423270669,1780009850000,-3149.57,0.00027872,2]
[423270670,1780009850000,-5194.39,0.00027872,2]
[423270605,1780009850000,-3000.0,0.00027666,30]
[423270642,1780009850000,-1071.07264219,0.0002783,42]
[423270641,1780009850000,-337.33,0.00027828,2]
[423270668,1780009850000,-5879.07,0.00027872,2]
[423270643,1780009850000,-1071.07264219,0.0002783,42]
[423270639,1780009850000,-150.0,0.00027827,2]
[423270607,1780009850000,-1228.0,0.00027666,30]
[423270613,1780009850000,-423.9,0.00027672,7]
[423270612,1780009850000,-387.55,0.00027672,7]